bitfinex-derivatives/quotes_ETHF0:USTF0_20241102
["timestamp","ask_amount","ask_price","bid_price","bid_amount"]
[1730577072104,3.67953275,2495.1,2495.0,1.72442066]
[1730577072402,0.4562,2495.2,2495.1,0.28062]
[1730577072602,4.13364206,2495.2,2495.1,1.72442066]
[1730577072798,0.28062,2495.1,2495.0,1.44380066]
[1730577073007,3.95824359,2495.1,2495.0,1.44380066]
[1730577073306,3.48842,2495.1,2495.0,1.44380066]
[1730577073506,7.16527615,2495.1,2495.0,1.44380066]
[1730577073898,3.48842,2495.1,2495.0,1.44380066]
[1730577074411,8.65960066,2495.1,2494.6,1.44380066]
[1730577074709,1.12913,2495.0,2494.7,1.44380066]
[1730577074906,1.12913,2495.0,2494.9,0.28064]
[1730577075303,5.13713,2495.0,2494.9,0.28064]
[1730577075509,5.13713,2495.0,2494.8,0.28064]
[1730577075703,1.12913,2495.0,2494.8,0.28064]
[1730577076206,0.28064,2494.9,2494.8,0.28064]
[1730577076613,0.8485,2495.0,2494.9,0.28064]
[1730577076801,0.8485,2495.0,2494.7,1.44380066]
[1730577077007,4.0563,2495.0,2494.8,0.28064]
[1730577077212,4.33693,2495.0,2494.8,0.28064]
[1730577078111,1.12913,2495.0,2494.7,1.44380066]
[1730577078306,4.33693,2495.0,2494.8,0.28064]
[1730577078615,4.0563,2495.0,2494.8,0.28064]
[1730577078805,0.28064,2494.9,2494.7,1.44380066]
[1730577079000,4.0563,2495.0,2494.7,0.28065]
[1730577079001,0.4498,2494.8,2494.7,0.28065]
[1730577079207,0.73045,2494.8,2494.7,0.28065]
[1730577079601,0.73045,2494.8,2494.7,0.28066]
[1730577080107,0.4498,2494.8,2494.7,0.28066]
[1730577080406,0.8485,2495.0,2494.7,1.44380066]
[1730577080602,0.8485,2495.0,2494.9,0.28064]
[1730577081409,0.8485,2495.0,2494.9,0.71614]
[1730577081910,1.12913,2495.0,2494.9,0.71614]
[1730577082301,0.8485,2495.0,2494.9,0.71614]
[1730577083112,4.0563,2495.0,2494.9,0.71614]
[1730577085402,4.0563,2495.0,2494.9,0.4355]
[1730577085617,0.28064,2494.9,2494.7,0.28065]
[1730577085914,0.28064,2494.9,2494.8,0.28064]
[1730577086810,0.8485,2495.0,2494.8,0.28064]
[1730577087014,1.12914,2495.0,2494.8,0.28064]
[1730577087914,0.8485,2495.0,2494.8,0.28064]
[1730577088117,0.28064,2494.9,2494.8,0.28064]
[1730577090105,0.28064,2494.9,2494.6,1.44380066]
[1730577090309,0.28064,2494.9,2494.8,0.28065]
[1730577091720,3.48844,2494.9,2494.8,0.28065]
[1730577092625,3.48844,2494.9,2494.7,0.28065]
[1730577093520,3.48844,2494.9,2494.8,0.28065]
[1730577094125,0.28064,2494.9,2494.8,0.28065]
[1730577094714,3.48844,2494.9,2494.8,0.28065]
[1730577095321,0.28064,2494.9,2494.8,0.28065]
[1730577095817,3.2078,2494.9,2494.6,1.44380066]
[1730577096021,0.28065,2494.8,2494.7,0.28066]
[1730577096416,3.48845,2494.9,2494.6,1.44380066]
[1730577096617,3.48845,2494.9,2494.8,0.28065]
[1730577096824,3.2078,2494.9,2494.6,1.44380066]
[1730577097010,0.28065,2494.8,2494.7,0.28066]
[1730577097415,3.48844,2494.9,2494.8,0.28065]
[1730577098017,3.2078,2494.9,2494.8,0.28065]
[1730577098616,3.48844,2494.9,2494.8,0.28065]
[1730577098925,4.33693,2495.0,2494.8,0.28064]
[1730577099117,1.12913,2495.0,2494.8,0.28064]
[1730577099319,4.33693,2495.0,2494.9,0.4249]
[1730577101216,0.4311,2495.2,2494.9,5.87670066]
[1730577101420,0.4311,2495.2,2495.1,0.28062]
[1730577101615,0.4388,2495.3,2495.2,0.2806]
[1730577107636,0.71939,2495.3,2495.2,0.2806]
[1730577108431,0.28061,2495.2,2495.1,0.28061]
[1730577109419,0.4388,2495.3,2495.1,0.28061]
[1730577109627,0.2806,2495.2,2495.1,0.28061]
[1730577110027,0.28063,2495.0,2494.9,0.70553]
[1730577110629,3.2078,2495.1,2494.7,0.4629]
[1730577110822,1.35,2494.9,2494.7,0.8855]
[1730577111025,0.28065,2494.8,2494.7,0.4226]
[1730577111225,0.28065,2494.8,2494.7,0.28066]
[1730577111425,0.28065,2494.8,2494.6,0.28066]
[1730577111626,3.48845,2494.8,2494.6,0.28066]
[1730577112234,3.2078,2494.8,2494.5,2.14708066]
[1730577112425,0.28067,2494.6,2494.5,0.70328]
[1730577112622,0.28067,2494.6,2494.5,1.42147161]
[1730577112830,0.28067,2494.7,2494.5,1.42147161]
[1730577113029,0.28067,2494.7,2494.5,0.70328]
[1730577113330,3.48846,2494.8,2494.6,0.28067]
[1730577113537,3.2078,2494.8,2494.5,0.70327]
[1730577113726,0.28067,2494.7,2494.5,0.70327]
[1730577114223,3.2078,2494.8,2494.5,0.4226]
[1730577114423,0.28068,2494.6,2494.5,0.28068]
[1730577114626,0.28068,2494.6,2494.5,0.59298865]
[1730577114833,0.28068,2494.6,2494.4,1.77812833]
[1730577115028,0.4598,2494.5,2494.4,1.77812833]
[1730577115227,0.4598,2494.5,2494.4,3.94030065]
[1730577115625,3.2078,2494.8,2494.4,3.94030065]
[1730577115626,3.2078,2494.8,2494.4,7.66841065]
[1730577115825,3.95751067,2495.1,2494.7,1.44380066]
[1730577116025,4.37921067,2495.1,2494.9,0.28063]
[1730577116427,0.28063,2495.0,2494.9,0.28063]
[1730577116634,4.37921067,2495.1,2494.9,0.28063]
[1730577117030,4.09859067,2495.1,2494.9,0.28063]
[1730577117230,0.28063,2495.0,2494.9,0.28063]
[1730577117533,4.37921067,2495.1,2494.9,0.28063]
[1730577118431,4.37921067,2495.1,2494.8,0.8725]
[1730577118630,4.37921067,2495.1,2494.9,0.28063]
[1730577120138,4.37921067,2495.1,2495.0,0.28063]
[1730577120530,4.37921067,2495.1,2494.8,0.8725]
[1730577120730,0.28063,2495.0,2494.9,0.28063]
[1730577120931,4.37921067,2495.1,2495.0,0.28063]
[1730577121431,4.09859067,2495.1,2495.0,0.28063]
[1730577121634,4.1288,2495.2,2495.1,0.28062]
[1730577121635,7.34759067,2495.2,2495.1,0.28062]
[1730577122534,4.13979067,2495.2,2495.1,0.28062]
[1730577122838,7.34759067,2495.2,2495.1,0.28062]
[1730577123039,7.62820067,2495.2,2495.0,0.28062]
[1730577123239,7.34759067,2495.2,2495.0,0.28062]
[1730577123441,0.28062,2495.1,2495.0,0.28062]
[1730577123841,8.79139133,2495.2,2494.8,0.4207]
[1730577124142,0.4558,2495.0,2494.9,0.28064]
[1730577124335,7.62820067,2495.2,2495.1,0.28062]
[1730577124530,7.34759067,2495.2,2495.1,0.28062]
[1730577124730,3.6707,2495.2,2495.1,0.28062]
[1730577127142,3.9513,2495.2,2495.1,0.28062]
[1730577127444,3.6707,2495.2,2495.1,0.28062]
[1730577128239,3.6707,2495.2,2495.0,0.28062]
[1730577128240,3.95131,2495.2,2495.0,0.28062]
[1730577128435,3.6707,2495.2,2494.8,0.4207]
[1730577128642,0.28062,2495.1,2494.9,0.28063]
[1730577128845,8.79139133,2495.2,2494.8,0.4207]
[1730577129148,0.72573,2495.0,2494.9,0.28063]
[1730577130839,0.4451,2495.0,2494.9,0.28063]
[1730577131150,0.72573,2495.0,2494.9,0.28063]
[1730577131449,0.72573,2495.0,2494.9,0.28064]
[1730577131652,0.28064,2494.9,2494.8,0.28064]
[1730577131946,0.72573,2495.0,2494.9,0.28064]
[1730577133147,0.4451,2495.0,2494.9,0.28064]
[1730577138952,0.98224,2494.9,2494.5,0.28068]
[1730577139257,0.28068,2494.5,2494.4,0.28069]
[1730577139754,8.66040066,2494.5,2493.8,5.70230388]
[1730577140055,1.72451066,2494.3,2494.2,0.28072]
[1730577140550,0.28072,2494.2,2494.1,0.28072]
[1730577140754,1.72451066,2494.3,2494.1,0.28072]
[1730577140949,0.28072,2494.2,2494.1,0.28072]
[1730577141143,0.28071,2494.3,2494.2,0.28072]
[1730577143546,1.3296,2494.4,2494.2,0.28072]
[1730577143751,1.6103,2494.4,2494.2,0.28072]
[1730577145057,4.8181,2494.4,2494.2,0.28072]
[1730577147243,0.28071,2494.3,2494.1,0.28072]
[1730577147950,4.5374,2494.4,2493.9,0.4497]
[1730577148253,4.5374,2494.4,2494.0,0.28073]
[1730577148254,1.44380066,2494.1,2494.0,0.28073]
[1730577148655,4.93233066,2494.1,2493.9,0.73044]
[1730577148842,2.32650066,2494.0,2493.9,0.28074]
[1730577150661,2.60724066,2494.0,2493.9,0.28074]
[1730577150861,2.32650066,2494.0,2493.7,0.4335]
[1730577151155,0.4309,2493.9,2493.8,0.28075]
[1730577154457,0.4309,2493.9,2493.5,3.2078]
[1730577154650,1.44380066,2493.8,2493.7,0.28077]
[1730577156351,1.44380066,2493.8,2493.5,0.4448]
[1730577156352,5.08250066,2493.9,2493.8,0.28076]
[1730577157055,1.87470066,2493.9,2493.8,0.28076]
[1730577157553,5.08250066,2493.9,2493.8,0.28076]
[1730577159358,1.87470066,2493.9,2493.8,0.28076]
[1730577159565,5.08250066,2493.9,2493.8,0.28076]
[1730577160366,1.87470066,2493.9,2493.8,0.28076]
[1730577160663,5.08250066,2493.9,2493.8,0.28076]
[1730577164163,4.65160066,2493.9,2493.8,0.28076]
[1730577164470,4.93235066,2493.9,2493.8,0.28076]
[1730577164968,1.72455066,2493.9,2493.8,0.28076]
[1730577170464,1.44380066,2493.9,2493.8,0.28076]
[1730577171071,1.72455066,2493.9,2493.8,0.28076]
[1730577171475,1.72455066,2493.9,2493.7,0.28076]
[1730577171868,1.72455066,2493.9,2493.8,0.4609]
[1730577173475,0.28076,2493.8,2493.7,0.28076]
[1730577173675,2.16416066,2493.8,2493.7,0.28076]
[1730577174066,1.88340066,2493.8,2493.7,0.28076]
[1730577182075,0.8827,2494.0,2493.9,0.28075]
[1730577182577,1.72453066,2494.1,2494.0,0.28074]
[1730577182780,1.72453066,2494.1,2493.9,0.28074]
[1730577184082,1.72453066,2494.1,2494.0,0.28074]
[1730577190185,1.44380066,2494.1,2494.0,0.28074]
[1730577195599,1.44380066,2494.1,2494.0,0.87365711]
[1730577195793,1.44380066,2494.1,2494.0,0.99904423]
[1730577196192,1.44380066,2494.2,2494.0,4.72790423]
[1730577196388,1.44380066,2494.2,2494.1,0.87364711]
[1730577196903,1.44380066,2494.2,2494.1,0.87354016]
[1730577197197,1.44380066,2494.2,2494.1,0.28073]
[1730577197798,1.44380066,2494.2,2494.1,0.87344651]
[1730577198395,1.44380066,2494.2,2494.1,0.28073]
[1730577205194,1.72452066,2494.2,2494.1,0.28073]
[1730577207800,1.44380066,2494.2,2494.1,0.28073]
[1730577210906,1.72452066,2494.2,2494.1,0.28073]
[1730577211211,1.44380066,2494.2,2494.1,0.28073]
[1730577227421,5.12287878,2494.2,2494.1,0.87410334]
[1730577227815,5.12287878,2494.2,2494.1,0.28073]
[1730577228020,5.12287878,2494.2,2494.1,0.87410943]
[1730577230221,5.12287878,2494.2,2494.1,0.28073]
[1730577233331,5.12287878,2494.2,2494.1,0.87419673]
[1730577234524,5.12287878,2494.2,2494.1,0.8742034]
[1730577236431,5.12287878,2494.2,2494.1,0.99959458]
[1730577236634,5.12287878,2494.2,2494.1,0.8742034]
[1730577239538,3.67907812,2494.2,2494.1,5.00919546]
[1730577239720,1.44380066,2494.3,2494.2,0.28072]
[1730577239925,5.58727878,2494.3,2494.2,0.8741934]
[1730577241132,5.58727878,2494.3,2494.2,0.99957722]
[1730577241429,5.58727878,2494.3,2494.2,0.8741934]
[1730577243237,5.58727878,2494.3,2494.2,0.87420162]
[1730577243743,7.36160132,2494.3,2493.8,0.4606]
[1730577244039,1.44380066,2493.9,2493.8,0.74136]
[1730577244335,1.44380066,2493.9,2493.8,2.61070372]
[1730577244533,1.44380066,2493.9,2493.8,2.15010372]
[1730577244834,1.44380066,2493.9,2493.8,0.99973955]
[1730577245025,1.86530066,2493.9,2493.8,0.99973955]
[1730577245835,2.14605066,2493.9,2493.8,0.71897955]
[1730577246129,2.14605066,2493.9,2493.6,0.4582]
[1730577246130,0.28076,2493.8,2493.7,0.28077]
[1730577246337,5.56041716,2493.8,2493.7,0.87439648]
[1730577246540,5.56041716,2493.8,2493.5,0.28079]
[1730577246541,0.28078,2493.7,2493.5,0.28079]
[1730577246744,1.44380066,2493.6,2493.5,0.2808]
[1730577247037,1.86250066,2493.6,2493.5,0.99991061]
[1730577247341,1.86250066,2493.6,2493.5,0.87449348]
[1730577248041,1.86250066,2493.6,2493.5,0.2808]
[1730577248928,2.14328066,2493.6,2493.5,0.2808]
[1730577249328,1.86250066,2493.6,2493.5,0.2808]
[1730577249726,1.86250066,2493.6,2493.2,1.58859211]
[1730577249932,3.90729,2493.6,2493.3,0.71857212]
[1730577250137,3.90729,2493.6,2493.4,0.2808]
[1730577250836,3.6265,2493.6,2493.1,0.4459]
[1730577251133,1.44380066,2493.3,2493.2,0.99931417]
[1730577251440,1.44380066,2493.3,2493.2,0.87388513]
[1730577251737,1.44380066,2493.3,2493.2,0.28083]
[1730577252437,1.72462066,2493.3,2493.2,0.28083]
[1730577252641,1.44380066,2493.3,2493.2,0.28083]
[1730577252938,2.30200066,2493.3,2493.2,0.28083]
[1730577253525,2.30200066,2493.3,2492.4,1.04854148]
[1730577253526,10.34100066,2493.3,2492.4,1.04854148]
[1730577253732,3.48866,2493.0,2492.8,0.28087]
[1730577253952,2.32380066,2492.9,2492.8,0.28087]
[1730577254331,2.32380066,2492.9,2492.5,0.4415]
[1730577254631,1.44380066,2492.6,2492.5,0.72241]
[1730577255128,1.44380066,2492.6,2492.5,4.73441]
[1730577259642,1.44380066,2492.6,2492.5,0.72241]
[1730577260631,1.89450066,2492.6,2492.5,0.72241]
[1730577263135,1.44380066,2492.6,2492.5,0.72241]
[1730577267134,4.65160066,2492.9,2492.8,0.28087]
[1730577267338,1.44380066,2492.9,2492.8,0.28087]
[1730577269438,1.44380066,2492.9,2492.8,0.74377]
[1730577278349,1.44380066,2492.9,2492.8,0.28087]
[1730577278549,0.28088,2492.8,2492.7,0.28088]
[1730577278746,2.79960066,2492.8,2492.7,0.28088]
[1730577278946,3.08047066,2492.8,2492.7,0.28088]
[1730577279752,2.79960066,2492.8,2492.7,0.28088]
[1730577289562,1.87780066,2492.8,2492.7,0.28088]
[1730577289865,1.44380066,2492.9,2492.8,0.28087]
[1730577290653,0.4315,2493.0,2492.7,1.16101]
[1730577290859,0.4315,2493.0,2492.9,0.28086]
[1730577292164,2.35220066,2493.1,2493.0,0.28085]
[1730577299373,6.03661716,2493.1,2493.0,0.28085]
[1730577299571,2.35220066,2493.1,2493.0,0.28085]
[1730577299881,6.03574095,2493.1,2493.0,0.28085]
[1730577304381,2.35220066,2493.1,2493.0,0.28085]
[1730577311485,2.35220066,2493.1,2493.0,0.87461787]
[1730577313789,2.35220066,2493.1,2493.0,0.28085]
[1730577314189,2.35220066,2493.1,2493.0,0.87458325]
[1730577314684,2.35220066,2493.1,2493.0,0.28085]
[1730577319087,6.89134029,2493.6,2493.0,12.53760082]
[1730577319293,0.437,2493.8,2493.7,0.28077]
[1730577319486,1.88080066,2493.8,2493.7,0.28077]
[1730577320593,1.44380066,2493.8,2493.7,0.28077]
[1730577321592,1.88080066,2493.8,2493.7,0.28077]
[1730577321793,2.32430066,2493.8,2493.7,0.28077]
[1730577358715,0.28078,2493.7,2493.6,0.28077]
[1730577358916,1.72457066,2493.7,2493.6,0.28077]
[1730577360714,1.44380066,2493.7,2493.6,0.28077]
[1730577363313,5.45420066,2493.7,2493.3,3.2078]
[1730577363508,1.44380066,2493.5,2493.1,0.28084]
[1730577363705,1.44380066,2493.2,2493.1,0.28084]
[1730577364106,1.44380066,2493.2,2493.1,1.94808223]
[1730577364311,1.44380066,2493.2,2493.1,2.1487674]
[1730577365419,1.44380066,2493.2,2493.1,1.94808223]
[1730577366115,1.44380066,2493.2,2493.1,0.99927366]
[1730577366716,2.33670066,2493.4,2493.3,0.28082]
[1730577374731,2.61751066,2493.4,2493.3,0.28082]
[1730577376121,0.28082,2493.3,2493.2,0.28083]
[1730577376426,1.72462066,2493.3,2493.2,0.28083]
[1730577376621,5.73582066,2493.3,2493.2,0.28083]
[1730577380924,0.28083,2493.2,2493.1,0.28083]
[1730577381226,1.88970066,2493.2,2493.1,0.28083]
[1730577384426,1.44380066,2493.2,2493.1,0.28083]
[1730577394956,0.28084,2493.1,2493.0,0.28084]
[1730577395255,1.44380066,2493.1,2493.0,0.28084]
[1730577395451,1.90230066,2493.1,2493.0,0.28084]
[1730577399749,1.44380066,2493.1,2493.0,0.28084]
[1730577402352,5.07060066,2493.3,2493.2,0.28083]
[1730577402553,4.65160066,2493.3,2493.2,0.28083]
[1730577403055,4.65160066,2493.3,2493.2,0.70663]
[1730577404161,1.44380066,2493.3,2493.2,0.70663]
[1730577404558,4.65160066,2493.3,2493.2,0.70663]
[1730577404756,1.44380066,2493.3,2493.2,0.70663]
[1730577405165,4.65160066,2493.3,2493.2,0.70663]
[1730577405860,1.44380066,2493.3,2493.2,0.70663]
[1730577406058,4.65160066,2493.3,2493.2,0.70663]
[1730577408757,1.44380066,2493.3,2493.2,0.70663]
[1730577409161,4.65160066,2493.3,2493.2,0.70663]
[1730577409961,1.44380066,2493.3,2493.2,0.70663]
[1730577410167,4.65160066,2493.3,2493.2,0.70663]
[1730577410463,8.33514095,2493.3,2493.2,0.70663]
[1730577410661,1.44380066,2493.3,2493.2,0.70663]
[1730577410866,1.44380066,2493.4,2493.3,0.28082]
[1730577411368,1.44380066,2493.4,2493.3,0.87449338]
[1730577414469,1.44380066,2493.4,2493.3,0.87450292]
[1730577414765,1.44380066,2493.4,2493.3,0.28082]
[1730577414964,1.44380066,2493.4,2493.3,0.8745233]
[1730577417876,1.44380066,2493.4,2493.3,0.28082]
[1730577418062,1.44380066,2493.4,2493.3,0.87446482]
[1730577420573,1.44380066,2493.4,2493.3,0.28082]
[1730577427768,5.12734095,2493.4,2493.3,0.28082]
[1730577427964,5.58164095,2493.4,2493.3,0.28082]
[1730577432073,1.89810066,2493.4,2493.3,0.28082]
[1730577432276,5.58164095,2493.4,2493.3,0.28082]
[1730577433485,1.89810066,2493.4,2493.3,0.28082]
[1730577433677,1.89810066,2493.4,2493.3,0.87421]
[1730577433886,5.58164095,2493.4,2493.3,0.87421]
[1730577434580,1.89810066,2493.4,2493.3,0.87421]
[1730577435477,2.36000066,2493.4,2493.3,0.87421]
[1730577436274,2.36000066,2493.4,2493.3,0.28082]
[1730577436874,2.36000066,2493.4,2493.3,0.87420475]
[1730577437378,2.36000066,2493.4,2493.3,0.28082]
[1730577441282,2.36000066,2493.4,2492.8,3.90998]
[1730577441497,1.44380066,2493.1,2493.0,0.28085]
[1730577441687,1.44380066,2493.1,2493.0,0.99971982]
[1730577441889,1.90380066,2493.1,2493.0,0.99971982]
[1730577442189,1.90380066,2493.1,2493.0,0.87428472]
[1730577443190,1.90380066,2493.1,2493.0,0.28085]
[1730577443391,1.90380066,2493.1,2493.0,0.99981636]
[1730577443591,2.18464066,2493.1,2493.0,0.99981636]
[1730577443888,1.90380066,2493.1,2493.0,0.99981636]
[1730577444288,2.33550066,2493.1,2493.0,0.99981636]
[1730577444994,0.8917,2493.1,2493.0,0.99981636]
[1730577446795,0.8917,2493.1,2493.0,0.99995051]
[1730577448889,0.8917,2493.1,2493.0,2.15063569]
[1730577449589,4.13444029,2493.3,2493.0,5.88098569]
[1730577449792,0.4509,2493.3,2493.2,0.28083]
[1730577449988,0.4509,2493.3,2493.2,1.94991669]
[1730577450188,0.4509,2493.3,2493.2,1.82447983]
[1730577450383,0.4509,2493.3,2493.2,1.94990843]
[1730577450698,0.4509,2493.3,2493.2,1.94979987]
[1730577452290,1.44380066,2493.4,2493.3,0.28082]
[1730577452495,7.33964029,2493.6,2493.5,0.2808]
[1730577452695,3.2078,2493.6,2493.5,0.99989724]
[1730577452885,1.44380066,2493.7,2493.6,0.28078]
[1730577453090,1.44380066,2493.7,2493.6,0.99987724]
[1730577453289,2.14735448,2493.8,2493.6,4.72949724]
[1730577453592,1.44380066,2493.9,2493.8,0.28076]
[1730577453788,1.44380066,2493.9,2493.8,0.87443039]
[1730577454184,1.44380066,2493.9,2493.8,0.28076]
[1730577456093,1.3358,2494.0,2493.9,0.28075]
[1730577456793,1.44380066,2494.2,2494.1,0.28073]
[1730577456996,3.2078,2494.4,2494.0,1.44380066]
[1730577457294,3.2078,2494.4,2494.3,0.28071]
[1730577458203,2.31320066,2494.6,2494.5,0.28068]
[1730577458396,2.31320066,2494.6,2494.5,0.33567639]
[1730577466313,6.32200066,2494.6,2494.5,0.05499639]
[1730577466506,6.60267066,2494.6,2494.5,0.05499639]
[1730577466810,6.60267066,2494.6,2494.5,0.33567639]
[1730577467508,6.32200066,2494.6,2494.5,0.33567639]
[1730577476217,2.31320066,2494.6,2494.5,0.33567639]
[1730577477716,0.8694,2494.6,2494.5,0.33567639]
[1730577478818,0.4336,2494.6,2494.5,0.33567639]
[1730577481017,3.6535,2494.7,2494.6,0.28067]
[1730577481216,0.4457,2494.7,2494.6,0.28067]
[1730577481413,0.4457,2494.7,2494.6,0.33566639]
[1730577482231,1.88950066,2494.7,2494.6,0.33566639]
[1730577483525,5.09730066,2494.7,2494.6,0.33566639]
[1730577484624,5.37796066,2494.7,2494.6,0.05499639]
[1730577484836,5.37796066,2494.7,2494.6,0.33566639]
[1730577485525,5.09730066,2494.7,2494.6,0.33566639]
[1730577485928,1.88950066,2494.7,2494.6,0.33566639]
[1730577486127,5.09730066,2494.7,2494.6,0.33566639]
[1730577487724,1.88950066,2494.7,2494.6,0.33566639]
[1730577488832,5.09730066,2494.7,2494.6,0.33566639]
[1730577489324,1.88950066,2494.7,2494.6,0.33566639]
[1730577490932,5.09730066,2494.7,2494.6,0.33566639]
[1730577491637,1.88950066,2494.7,2494.6,0.33566639]
[1730577491824,5.09730066,2494.7,2494.6,0.33566639]
[1730577492026,5.37796066,2494.7,2494.6,0.33566639]
[1730577492224,5.09730066,2494.7,2494.6,0.33566639]
[1730577492528,5.37796066,2494.7,2494.6,0.33566639]
[1730577493119,5.09730066,2494.7,2494.6,0.33566639]
[1730577494230,5.37796066,2494.7,2494.6,0.33566639]
[1730577494625,5.09730066,2494.7,2494.6,0.33566639]
[1730577495828,5.37796066,2494.7,2494.6,0.33566639]
[1730577496830,5.09730066,2494.7,2494.6,0.33566639]
[1730577497023,5.37796066,2494.7,2494.6,0.33566639]
[1730577497229,5.09730066,2494.7,2494.6,0.33566639]
[1730577497940,1.88950066,2494.7,2494.6,0.33566639]
[1730577498235,5.09730066,2494.7,2494.6,0.33566639]
[1730577498433,8.78084095,2494.7,2494.6,0.33566639]
[1730577499332,9.06150095,2494.7,2494.6,0.33566639]
[1730577500435,8.78084095,2494.7,2494.6,0.33566639]
[1730577500640,5.09730066,2494.7,2494.6,0.33566639]
[1730577500937,1.88950066,2494.7,2494.6,0.33566639]
[1730577501540,9.5909865,2494.7,2494.6,0.33566639]
[1730577502335,5.09730066,2494.7,2494.6,0.33566639]
[1730577503632,5.37796066,2494.7,2494.6,0.33566639]
[1730577503833,2.17016066,2494.7,2494.6,0.33566639]
[1730577504027,5.09730066,2494.7,2494.6,0.33566639]
[1730577504439,1.88950066,2494.7,2494.6,0.33566639]
[1730577504930,5.09730066,2494.7,2494.6,0.33566639]
[1730577505441,5.37796066,2494.7,2494.6,0.33566639]
[1730577506231,2.17016066,2494.7,2494.6,0.33566639]
[1730577507542,5.09730066,2494.7,2494.6,0.33566639]
[1730577508444,9.10610066,2494.7,2494.3,0.4319]
[1730577508746,1.44380066,2494.4,2494.3,0.71261]
[1730577509047,5.12674179,2494.4,2494.3,0.71261]
[1730577509346,6.44284179,2494.4,2494.3,0.71261]
[1730577509644,9.93133179,2494.4,2494.3,0.28071]
[1730577509950,9.65064179,2494.4,2494.3,0.28071]
[1730577510439,9.93133179,2494.4,2494.3,0.28071]
[1730577511040,0.28071,2494.3,2494.1,0.74332]
[1730577511240,0.28071,2494.3,2494.0,0.28073]
[1730577511241,1.72452066,2494.2,2494.0,0.28073]
[1730577511549,0.28074,2494.1,2493.9,0.71584]
[1730577511742,2.30910066,2494.0,2493.9,0.71584]
[1730577535254,0.8653,2494.0,2493.9,0.71584]
[1730577535954,0.4213,2494.0,2493.9,0.71584]
[1730577536853,0.4444,2494.1,2494.0,0.28074]
[1730577549469,4.12717745,2494.1,2494.0,0.28074]
[1730577550885,0.4444,2494.1,2494.0,0.28074]
[1730577551066,0.4444,2494.1,2494.0,0.70054]
[1730577551573,4.12717745,2494.1,2494.0,0.70054]
[1730577551971,3.68277745,2494.2,2494.1,0.28073]
[1730577552270,3.68277745,2494.3,2494.2,0.28072]
[1730577552471,4.21302584,2494.4,2494.3,0.28071]
[1730577553570,11.8443127,2494.5,2494.3,0.28071]
[1730577553761,4.20676515,2494.4,2494.3,0.28071]
[1730577553966,5.65056581,2494.4,2494.3,0.28071]
[1730577560278,1.44380066,2494.4,2494.3,0.28071]
[1730577561383,5.1258232,2494.4,2494.3,0.28071]
[1730577562680,3.68202254,2494.4,2494.3,0.28071]
[1730577565180,8.3336232,2494.5,2494.3,4.0088]
[1730577565385,8.3336232,2494.5,2494.4,0.69949]
[1730577567284,5.1258232,2494.5,2494.4,0.69949]
[1730577569493,1.44380066,2494.5,2494.4,0.69949]
[1730577570095,5.12302616,2494.5,2494.4,0.69949]
[1730577577702,1.44380066,2494.5,2494.4,0.69949]
[1730577579994,1.44380066,2494.5,2494.2,0.429]
[1730577580303,1.44380066,2494.5,2494.2,0.28072]
[1730577580304,1.44380066,2494.3,2494.2,0.28072]
[1730577580797,2.74940066,2494.3,2494.2,0.28072]
[1730577584706,6.42862616,2494.3,2494.2,0.28072]
[1730577586212,1.3056,2494.3,2494.2,0.28072]
[1730577587614,4.9848255,2494.3,2494.2,0.28072]
[1730577591414,1.3056,2494.3,2494.2,0.28072]
[1730577591608,4.9848255,2494.3,2494.2,0.28072]
[1730577592720,1.3056,2494.3,2494.2,0.28072]
[1730577593716,3.6792255,2494.4,2494.3,0.28071]
[1730577594416,5.0156255,2494.5,2494.1,0.70182]
[1730577594719,1.3364,2494.5,2494.4,0.28069]
[1730577597617,5.82384515,2494.5,2494.4,0.28069]
[1730577598111,5.54316515,2494.5,2494.4,0.28069]
[1730577601726,0.8864,2494.5,2494.4,0.28069]
[1730577601914,0.8864,2494.5,2494.2,0.4304]
[1730577602223,3.6827724,2494.4,2494.3,0.28071]
[1730577604823,3.6827724,2494.4,2494.3,0.87403108]
[1730577605515,3.6827724,2494.4,2494.3,0.87405249]
[1730577606723,2.61089066,2494.5,2494.4,0.28069]
[1730577607023,6.81765581,2494.5,2494.4,0.28069]
[1730577607524,6.53696581,2494.5,2494.4,0.28069]
[1730577607826,2.33020066,2494.5,2494.4,0.28069]
[1730577610724,0.28071,2494.3,2494.2,0.28072]
[1730577610929,3.2078,2494.3,2494.2,0.28072]
[1730577611224,3.48851,2494.3,2494.1,0.71822]
[1730577611529,4.98617338,2494.2,2494.1,0.71822]
[1730577612424,4.98617338,2494.2,2494.1,0.28072]
[1730577614822,1.3028,2494.2,2494.1,0.99948664]
[1730577615626,1.3028,2494.2,2494.1,0.99949401]
[1730577618029,1.3028,2494.2,2494.1,0.99949346]
[1730577620235,3.68337338,2494.3,2494.2,0.28072]
[1730577620537,4.10327338,2494.3,2494.2,0.87410631]
[1730577621439,0.4199,2494.3,2494.2,0.99949278]
[1730577621627,0.70061,2494.3,2494.2,0.99949294]
[1730577621934,0.4199,2494.3,2494.2,0.99949294]
[1730577623029,4.10327338,2494.3,2494.2,0.99949294]
[1730577624038,0.4199,2494.3,2494.2,0.59739294]
[1730577624229,0.70061,2494.3,2494.2,0.87811294]
[1730577624429,0.70061,2494.3,2494.2,0.59739294]
[1730577624635,2.14441066,2494.3,2494.2,0.59739294]
[1730577624836,8.46149574,2494.3,2494.2,0.12538663]
[1730577625340,8.46149574,2494.3,2493.7,0.28077]
[1730577625341,0.28075,2493.9,2493.7,0.28077]
[1730577625529,7.09768842,2493.8,2493.7,0.28077]
[1730577626835,0.28077,2493.7,2493.5,0.28079]
[1730577627037,7.51336612,2493.7,2493.5,0.28079]
[1730577627230,5.78879546,2493.6,2493.5,0.28079]
[1730577627630,4.60001082,2493.7,2493.6,0.28078]
[1730577627929,7.23152327,2493.7,2493.6,0.28078]
[1730577628331,7.23152327,2493.7,2493.5,0.2808]
[1730577628540,4.60001082,2493.7,2493.4,0.8963]
[1730577628744,4.60001082,2493.7,2493.5,0.28079]
[1730577629641,4.60001082,2493.7,2493.6,0.28078]
[1730577629944,2.56877066,2493.8,2493.6,0.28078]
[1730577630439,8.0739483,2493.8,2493.4,0.8963]
[1730577630738,5.72498082,2493.8,2493.6,0.28078]